bitfinex/quotes_BTCUSD_20240911
["timestamp","ask_amount","ask_price","bid_price","bid_amount"]
[1726085045579,0.14502,57755.0,57753.0,0.17315]
[1726085045796,0.14502,57755.0,57751.0,0.173156]
[1726085046013,0.318165,57755.0,57754.0,0.0036776]
[1726085046233,0.318165,57755.0,57751.0,0.173156]
[1726085046461,0.173148,57754.0,57751.0,0.173156]
[1726085046684,0.05156893,57754.0,57751.0,0.346313]
[1726085046890,0.19658893,57755.0,57750.0,0.346315]
[1726085047108,0.05156893,57754.0,57749.0,0.54736741]
[1726085047330,0.05156893,57753.0,57751.0,0.173155]
[1726085047963,0.05156893,57753.0,57751.0,0.007]
[1726085048184,0.57103093,57752.0,57751.0,0.007]
[1726085048457,0.519462,57752.0,57751.0,0.007]
[1726085048675,0.5968154,57752.0,57751.0,0.007]
[1726085049097,0.173161,57750.0,57746.0,0.173172]
[1726085049320,0.05176991,57749.0,57746.0,0.173172]
[1726085049542,0.05176991,57749.0,57747.0,0.0036776]
[1726085049959,0.05176991,57748.0,57747.0,0.0036776]
[1726085050170,0.05176991,57748.0,57747.0,0.1768466]
[1726085050400,0.05180657,57748.0,57747.0,0.1768466]
[1726085050627,0.05180657,57748.0,57747.0,0.8695226]
[1726085050846,0.05180657,57748.0,57747.0,0.99127436]
[1726085051096,0.05280657,57748.0,57747.0,1.00027436]
[1726085051307,0.001,57748.0,57747.0,0.65393636]
[1726085051524,0.05281363,57748.0,57747.0,0.5321846]
[1726085051751,0.001,57748.0,57747.0,0.5321846]
[1726085051988,0.05281355,57748.0,57747.0,0.5321846]
[1726085052215,0.05281637,57748.0,57747.0,0.5321846]
[1726085052444,0.001,57748.0,57747.0,0.5321846]
[1726085053107,0.001,57748.0,57747.0,0.98148641]
[1726085053323,0.0783534,57748.0,57747.0,0.98148641]
[1726085053550,0.0783534,57748.0,57747.0,0.8801606]
[1726085054412,0.0783534,57748.0,57747.0,0.5338226]
[1726085056484,0.20517661,57748.0,57747.0,0.5338226]
[1726085057362,0.30831447,57748.0,57747.0,0.8801606]
[1726085057626,0.30831447,57748.0,57747.0,0.5338226]
[1726085057861,0.30831447,57748.0,57747.0,0.8801606]
[1726085058301,0.30831447,57748.0,57747.0,0.5338226]
[1726085058516,0.30831447,57748.0,57747.0,0.8801606]
[1726085058734,0.30831447,57748.0,57747.0,0.5338226]
[1726085059419,0.20531868,57748.0,57747.0,0.5338226]
[1726085060596,0.3828139,57748.0,57747.0,0.0143156]
[1726085060812,0.87271668,57748.0,57747.0,0.010638]
[1726085061044,0.87271668,57748.0,57747.0,0.01434658]
[1726085061264,1.21904868,57748.0,57747.0,0.010638]
[1726085061513,1.21804868,57748.0,57747.0,0.001638]
[1726085061726,0.87171668,57748.0,57747.0,0.001638]
[1726085062149,0.87171668,57748.0,57747.0,0.00534658]
[1726085062363,0.87171668,57748.0,57747.0,0.001638]
[1726085062576,0.87171668,57748.0,57747.0,0.00534658]
[1726085062830,0.52538468,57748.0,57747.0,0.003638]
[1726085063040,0.52538468,57748.0,57747.0,0.00734658]
[1726085063268,0.52538468,57748.0,57747.0,0.00538417]
[1726085063743,0.52638468,57748.0,57747.0,0.00538417]
[1726085064227,0.52538468,57748.0,57747.0,0.00538417]
[1726085064453,1.21804868,57748.0,57747.0,0.00738417]
[1726085064691,1.84970564,57748.0,57747.0,0.003638]
[1726085064945,1.84970564,57748.0,57745.0,0.00164]
[1726085064946,0.519516,57746.0,57745.0,0.00164]
[1726085065164,2.10470222,57746.0,57745.0,0.00164]
[1726085065394,2.00425822,57746.0,57745.0,0.00164]
[1726085065610,0.346389,57739.0,57733.0,0.17321]
[1726085065840,0.173202,57737.0,57733.0,0.17321]
[1726085066067,0.20431868,57736.0,57733.0,0.17321]
[1726085066284,0.20431868,57735.0,57732.0,0.173213]
[1726085066513,0.20431868,57735.0,57730.0,0.346436]
[1726085066514,0.12968055,57733.0,57730.0,0.519653]
[1726085066736,0.10374457,57731.0,57729.0,0.00164]
[1726085066947,0.07780863,57730.0,57729.0,0.00164]
[1726085067156,0.07780863,57731.0,57730.0,0.17322]
[1726085068487,0.07780863,57731.0,57729.0,0.00164]
[1726085068488,0.25102263,57732.0,57729.0,0.174862]
[1726085068715,0.05183954,57730.0,57729.0,0.174862]
[1726085069149,0.05183954,57730.0,57729.0,0.00164]
[1726085069424,0.22505954,57730.0,57729.0,0.00164]
[1726085069656,0.59746863,57730.0,57729.0,0.00164]
[1726085069877,0.27696257,57731.0,57729.0,0.00164]
[1726085070090,0.17322,57730.0,57729.0,0.00164]
[1726085070299,0.25094351,57730.0,57729.0,0.00164]
[1726085070525,0.60171423,57730.0,57729.0,0.00164]
[1726085070745,0.25094351,57730.0,57729.0,0.00164]
[1726085071174,0.07772351,57731.0,57729.0,0.00164]
[1726085071384,0.05180064,57730.0,57729.0,0.00164]
[1726085071600,0.25094151,57731.0,57729.0,0.00464]
[1726085071815,0.07772351,57730.0,57729.0,0.00464]
[1726085072022,0.07772351,57730.0,57729.0,0.00164]
[1726085072242,0.25094151,57731.0,57729.0,0.00164]
[1726085072449,0.25094151,57731.0,57729.0,0.00264]
[1726085072876,0.25094151,57731.0,57729.0,0.00164]
[1726085073337,0.05177811,57730.0,57729.0,0.00164]
[1726085074192,0.22499611,57731.0,57729.0,0.00364]
[1726085075079,0.22499611,57731.0,57729.0,0.00164]
[1726085075513,0.22499611,57731.0,57729.0,0.00264]
[1726085076160,0.173218,57731.0,57729.0,0.00264]
[1726085076634,0.87043071,57730.0,57729.0,0.00264]
[1726085076854,0.52399071,57730.0,57729.0,0.00264]
[1726085077126,0.52399071,57730.0,57729.0,0.00623278]
[1726085077339,0.52399071,57730.0,57729.0,0.00264]
[1726085077554,0.52399071,57730.0,57729.0,0.00623278]
[1726085077765,0.52399071,57730.0,57729.0,0.00164]
[1726085077976,0.52399071,57730.0,57729.0,0.00723278]
[1726085078200,0.8661,57730.0,57729.0,0.00364]
[1726085078419,0.8661,57730.0,57729.0,0.00723278]
[1726085078634,0.8661,57730.0,57729.0,0.00364]
[1726085078635,0.94382351,57730.0,57729.0,0.00364]
[1726085078873,0.94371802,57730.0,57729.0,0.00364]
[1726085079094,0.8661,57730.0,57729.0,0.00364]
[1726085079320,0.91783931,57730.0,57729.0,0.00364]
[1726085079531,0.8661,57730.0,57729.0,0.00364]
[1726085079787,0.05174417,57730.0,57729.0,0.00364]
[1726085080253,0.05173951,57730.0,57729.0,0.87341221]
[1726085080479,0.051745,57731.0,57730.0,0.17322]
[1726085081138,0.051745,57731.0,57730.0,0.17687721]
[1726085081354,0.07761802,57732.0,57730.0,0.17687721]
[1726085081585,0.346434,57731.0,57730.0,0.00365721]
[1726085081811,0.52398157,57731.0,57730.0,0.00465721]
[1726085082257,0.17322,57730.0,57729.0,0.00164]
[1726085082467,0.57142137,57730.0,57729.0,0.00164]
[1726085082864,0.22498137,57730.0,57729.0,0.00164]
[1726085083868,0.17322,57730.0,57729.0,0.00164]
[1726085084076,0.22497793,57730.0,57729.0,0.00164]
[1726085084278,0.17322,57730.0,57729.0,0.00364]
[1726085084881,0.20038181,57730.0,57729.0,0.00364]
[1726085085104,0.02716181,57730.0,57729.0,0.2291968]
[1726085085347,0.02716181,57730.0,57729.0,0.9220888]
[1726085085568,0.02716181,57730.0,57729.0,1.12313321]
[1726085085775,0.05175646,57733.0,57732.0,0.519642]
[1726085085979,0.05175646,57736.0,57733.0,0.173209]
[1726085086186,0.05175646,57736.0,57734.0,0.173207]
[1726085086398,0.22495546,57737.0,57734.0,0.173207]
[1726085086641,0.05175646,57736.0,57734.0,0.173207]
[1726085086848,0.25081402,57738.0,57734.0,0.173207]
[1726085086849,0.05175646,57735.0,57734.0,0.173207]
[1726085087116,0.22496246,57735.0,57731.0,0.173215]
[1726085087319,0.001,57733.0,57731.0,0.173215]
[1726085087995,0.0517662,57734.0,57732.0,0.173213]
[1726085088196,0.0517662,57734.0,57732.0,0.17687021]
[1726085089050,0.0517662,57733.0,57732.0,0.17687021]
[1726085089499,0.0517662,57733.0,57732.0,0.52329821]
[1726085089719,0.0517662,57733.0,57732.0,0.61043783]
[1726085090186,0.0517662,57733.0,57732.0,0.61043883]
[1726085090187,0.07761802,57733.0,57732.0,0.61043883]
[1726085090405,0.07761802,57733.0,57732.0,0.52329921]
[1726085090823,0.07761802,57733.0,57732.0,0.00365721]
[1726085091033,0.07761802,57733.0,57731.0,0.173217]
[1726085091248,0.05180347,57732.0,57731.0,0.173217]
[1726085091449,0.07761802,57733.0,57732.0,0.173214]
[1726085093521,0.30546121,57734.0,57729.0,0.00164]
[1726085093522,0.10374457,57734.0,57729.0,0.00164]
[1726085093729,0.0518137,57731.0,57730.0,0.173219]
[1726085094155,0.07772056,57732.0,57731.0,0.173217]
[1726085094364,0.10374457,57733.0,57732.0,0.173214]
[1726085094593,0.30544047,57733.0,57732.0,0.173214]
[1726085094815,0.30544047,57733.0,57732.0,0.6064159]
[1726085095489,0.10374457,57733.0,57732.0,0.6064159]
[1726085095690,0.30544047,57733.0,57732.0,0.6064159]
[1726085096116,0.47865147,57733.0,57730.0,0.173218]
[1726085096376,0.0777468,57731.0,57730.0,0.173218]
[1726085096581,0.07774681,57731.0,57730.0,0.173218]
[1726085097049,0.07774681,57731.0,57729.0,0.00164]
[1726085097269,0.07774681,57731.0,57729.0,0.174861]
[1726085097510,0.8661,57730.0,57729.0,0.00164]
[1726085097721,1.25199702,57730.0,57729.0,0.00164]
[1726085097951,1.122419,57730.0,57729.0,0.00164]
[1726085098195,1.14958122,57730.0,57729.0,0.00164]
[1726085099637,1.15058122,57730.0,57729.0,0.00764]
[1726085100909,1.49702122,57730.0,57729.0,0.00764]
[1726085101181,1.65251484,57730.0,57729.0,0.00764]
[1726085101449,1.77853115,57730.0,57729.0,0.00764]
[1726085101686,0.346467,57726.0,57718.0,0.173254]
[1726085101933,0.173238,57724.0,57717.0,0.346516]
[1726085102180,0.07780685,57719.0,57718.0,0.519768]
[1726085102430,0.07780685,57719.0,57718.0,0.173256]
[1726085102683,0.07780685,57719.0,57718.0,0.519768]
[1726085103171,0.10374247,57720.0,57719.0,0.173253]
[1726085104276,0.30292709,57721.0,57718.0,0.179254]
[1726085104488,0.10378365,57719.0,57718.0,0.173254]
[1726085104719,0.3044305,57719.0,57718.0,0.173254]
[1726085105157,0.10378365,57719.0,57718.0,0.173254]
[1726085105391,0.3044305,57719.0,57718.0,0.173254]
[1726085106066,0.3044305,57719.0,57718.0,1.00724084]
[1726085106067,0.20064685,57719.0,57718.0,1.00724084]
[1726085106307,0.12967809,57721.0,57720.0,0.0627]
[1726085106308,0.05191356,57721.0,57720.0,0.0627]
[1726085106528,0.10378365,57724.0,57721.0,0.866235]
[1726085106529,0.07785073,57722.0,57721.0,0.866235]
[1726085106767,0.07785073,57722.0,57720.0,0.0627]
[1726085106976,0.07785073,57722.0,57720.0,0.23595]
[1726085106977,0.10483527,57721.0,57720.0,0.23595]
[1726085107190,0.001,57721.0,57720.0,0.23595]
[1726085107415,0.20130971,57721.0,57720.0,0.0627]
[1726085107644,0.001,57721.0,57720.0,0.23595]
[1726085107868,0.3319878,57721.0,57720.0,0.58245]
[1726085108135,0.20230971,57721.0,57720.0,0.58245]
[1726085108802,0.33216399,57721.0,57720.0,0.58611259]
[1726085109015,0.20230971,57721.0,57720.0,0.58611259]
[1726085109280,0.20230971,57721.0,57720.0,0.93261259]
[1726085109466,0.001,57721.0,57720.0,0.93261259]
[1726085109935,0.20230971,57721.0,57720.0,0.93261259]
[1726085110183,0.20230971,57721.0,57720.0,1.42712959]
[1726085110441,0.20230971,57721.0,57720.0,1.85202959]
[1726085110442,0.001,57721.0,57720.0,1.85202959]
[1726085110693,0.001,57721.0,57720.0,1.50552959]
[1726085110912,0.05297256,57721.0,57720.0,1.50552959]
[1726085111816,0.05297256,57721.0,57720.0,1.85202959]
[1726085112042,0.001,57721.0,57720.0,1.85202959]
[1726085112944,0.05297256,57721.0,57720.0,1.85202959]
[1726085115216,0.001,57721.0,57720.0,1.85202959]
[1726085115458,0.05298026,57721.0,57720.0,1.85366959]
[1726085116205,0.05198026,57725.0,57721.0,0.0778]
[1726085116434,0.07796047,57726.0,57721.0,0.0778]
[1726085116435,0.05198026,57726.0,57725.0,0.581705]
[1726085116639,0.05197239,57726.0,57725.0,0.581705]
[1726085116854,0.05197239,57726.0,57725.0,0.75858304]
[1726085116855,0.10395013,57726.0,57725.0,0.75858304]
[1726085117076,0.33178604,57726.0,57725.0,0.35011304]
[1726085117296,0.33178604,57726.0,57725.0,0.86981804]
[1726085117527,0.00082,57730.0,57728.0,0.346446]
[1726085117528,0.1564337,57730.0,57728.0,0.346446]
[1726085117779,0.1564337,57730.0,57729.0,0.173223]
[1726085118234,0.35817888,57730.0,57729.0,0.26383926]
[1726085118693,0.35817888,57730.0,57729.0,0.00363806]
[1726085118694,0.37578518,57730.0,57729.0,0.00363806]
[1726085118906,0.48492922,57730.0,57727.0,0.173228]
[1726085119121,0.35767586,57729.0,57727.0,0.173227]
[1726085119338,0.35767586,57729.0,57728.0,0.173226]
[1726085119977,0.35767586,57729.0,57728.0,0.6062937]
[1726085120202,0.35767586,57729.0,57728.0,0.519678]
[1726085120456,0.15593068,57729.0,57728.0,1.212582]
[1726085120741,0.20174518,57729.0,57728.0,1.47562641]
[1726085120970,0.20174518,57729.0,57728.0,1.47862641]
[1726085121188,0.20174518,57729.0,57728.0,1.5898913]
[1726085121417,0.20174518,57729.0,57728.0,0.93113]
[1726085121860,0.20174518,57729.0,57728.0,1.13217441]
[1726085122302,0.20174518,57729.0,57728.0,1.12917441]
[1726085122488,0.20274518,57729.0,57728.0,1.48162641]
[1726085122919,0.20174518,57729.0,57728.0,1.62378905]
[1726085123406,0.0787669,57730.0,57729.0,0.866115]
[1726085123633,0.00082,57730.0,57729.0,0.928915]
[1726085123858,0.00082,57730.0,57729.0,1.7620283]
[1726085125826,0.00082,57730.0,57729.0,1.4155823]
[1726085126703,0.00182,57730.0,57729.0,1.7760283]
[1726085127390,0.00082,57730.0,57729.0,1.7620283]
[1726085129190,0.00082,57730.0,57729.0,1.4155823]
[1726085129618,0.00082,57730.0,57729.0,1.7620283]
[1726085129835,0.00182,57730.0,57729.0,1.7760283]
[1726085130279,0.00082,57730.0,57729.0,1.7620283]
[1726085130707,0.00182,57730.0,57729.0,1.7760283]
[1726085131184,0.00082,57730.0,57729.0,1.7620283]
[1726085131392,0.00182,57730.0,57729.0,1.7760283]
[1726085132012,0.00182,57730.0,57729.0,1.78172488]
[1726085132848,0.00082,57730.0,57729.0,1.76772488]
[1726085133060,0.00182,57730.0,57729.0,1.78172488]
[1726085133784,0.00182,57730.0,57729.0,1.43527888]
[1726085134007,0.00182,57730.0,57729.0,1.28469667]
[1726085134008,0.00082,57730.0,57729.0,1.28469667]
[1726085134447,0.00182,57730.0,57729.0,1.29869667]
[1726085134671,0.00182,57730.0,57729.0,0.88945067]
[1726085135148,0.05370467,57730.0,57729.0,0.88945067]
[1726085135380,0.00182,57730.0,57729.0,1.01304154]
[1726085135793,0.00082,57730.0,57729.0,0.99904154]
[1726085136048,0.00082,57730.0,57729.0,1.08094154]
[1726085136252,0.00082,57730.0,57729.0,1.14474154]
[1726085136476,0.00182,57730.0,57729.0,1.50318754]
[1726085136891,0.00082,57730.0,57729.0,1.49118754]
[1726085137099,0.00082,57730.0,57729.0,1.50018754]
[1726085137344,0.00182,57730.0,57729.0,1.84663354]
[1726085137760,0.00082,57730.0,57729.0,1.83763354]
[1726085138647,0.00082,57730.0,57729.0,1.49118754]
[1726085138863,0.00082,57730.0,57729.0,1.40928754]
[1726085139295,0.00082,57730.0,57729.0,1.42228754]
[1726085139296,0.00182,57730.0,57729.0,1.42228754]
[1726085141011,0.00182,57730.0,57729.0,1.35848754]
[1726085143513,0.00182,57730.0,57729.0,1.23489667]
[1726085145564,0.05370117,57730.0,57729.0,1.23489667]
[1726085145779,0.00182,57730.0,57729.0,1.23489667]
[1726085147342,0.00182,57730.0,57729.0,0.88845067]
[1726085147595,0.00182,57730.0,57729.0,0.19555867]
[1726085147822,0.07964176,57730.0,57729.0,0.19555867]
[1726085148269,0.07964176,57730.0,57729.0,0.54200467]
[1726085148495,0.07964176,57730.0,57729.0,0.19555867]
[1726085149168,0.07964176,57730.0,57729.0,0.54200467]
[1726085149393,0.07964176,57730.0,57729.0,0.19555867]
[1726085150275,0.00182,57730.0,57729.0,0.19555867]
[1726085150722,0.20046749,57730.0,57729.0,0.19555867]
[1726085151432,0.10558234,57730.0,57729.0,0.19555867]
[1726085151665,0.30422983,57730.0,57729.0,0.19555867]
[1726085152087,0.30422983,57730.0,57729.0,0.19719867]
[1726085153371,0.20046749,57730.0,57729.0,0.54364467]
[1726085154536,0.33017042,57730.0,57729.0,0.02397567]
[1726085154969,0.20046749,57730.0,57729.0,0.02397567]
[1726085155183,0.20046749,57730.0,57729.0,0.19719867]
[1726085155647,0.20047642,57730.0,57729.0,0.19719867]
[1726085158608,0.20047642,57730.0,57729.0,0.89009067]
[1726085158826,0.20047642,57730.0,57729.0,0.54364467]
[1726085159537,0.20047642,57730.0,57729.0,0.99920618]
[1726085160439,0.20047642,57730.0,57729.0,1.40845218]
[1726085160715,0.30438452,57730.0,57729.0,1.40845218]
[1726085161651,0.30438452,57730.0,57729.0,1.23653667]
[1726085163013,0.33036161,57730.0,57729.0,0.54364467]
[1726085163236,0.33037187,57730.0,57729.0,0.89009067]
[1726085163904,0.33037187,57730.0,57729.0,1.03385118]
[1726085164861,0.33037187,57730.0,57729.0,1.38029718]
[1726085165091,0.33037187,57730.0,57729.0,1.03385118]
[1726085166390,0.20047642,57730.0,57729.0,1.03385118]
[1726085166834,0.20047642,57730.0,57729.0,1.38029718]
[1726085167065,0.30440752,57730.0,57729.0,1.44599718]
[1726085167362,0.05378391,57730.0,57729.0,1.52119718]
[1726085167592,0.00182,57730.0,57729.0,1.52119718]
[1726085168255,0.05378391,57730.0,57729.0,1.52119718]
[1726085168464,0.05378391,57730.0,57729.0,1.30223667]
[1726085168700,0.07976895,57730.0,57729.0,1.30223667]
[1726085168913,0.07976834,57730.0,57729.0,1.30223667]
[1726085170026,0.10575193,57730.0,57729.0,1.30223667]
[1726085170250,0.0797707,57730.0,57729.0,1.30223667]
[1726085170687,0.0797707,57730.0,57729.0,1.45256478]
[1726085170908,0.00182,57730.0,57729.0,1.45256478]
[1726085172487,0.0797707,57730.0,57729.0,1.45256478]
[1726085173587,0.33834597,57730.0,57729.0,0.19719867]
[1726085173871,0.33834597,57730.0,57729.0,0.54364467]
[1726085174754,0.27644597,57730.0,57729.0,0.89009067]
[1726085175459,0.27644597,57730.0,57729.0,1.01374604]
[1726085176053,0.27644597,57730.0,57729.0,0.66730004]
[1726085177492,0.19934597,57730.0,57729.0,0.66730004]
[1726085177693,0.19934597,57730.0,57729.0,1.09113508]
[1726085177917,0.19934597,57730.0,57729.0,0.89009067]
[1726085178351,0.19934597,57730.0,57729.0,0.19719867]
[1726085178568,0.29195904,57730.0,57729.0,0.19719867]
[1726085178767,0.48948501,57730.0,57729.0,0.19719867]
[1726085179010,0.61002543,57730.0,57729.0,0.19719867]
[1726085179406,0.48960433,57730.0,57729.0,0.19719867]
[1726085179625,0.61002543,57730.0,57729.0,0.19719867]
[1726085180044,0.33358711,57730.0,57729.0,0.54364467]
[1726085180488,0.33358711,57730.0,57729.0,0.19719867]
[1726085180700,0.61002543,57730.0,57729.0,0.187863]
[1726085180911,0.33358711,57730.0,57729.0,0.19719901]
[1726085181779,1.26931769,57730.0,57729.0,0.02397601]
[1726085182004,1.98786543,57730.0,57729.0,0.01464]
[1726085182240,1.99982755,57730.0,57729.0,0.01464]
[1726085183385,1.99640317,57730.0,57729.0,0.00164]
[1726085183603,1.99640317,57730.0,57729.0,0.00564]
[1726085184284,1.99640317,57730.0,57729.0,0.00164]
[1726085184491,2.00140317,57730.0,57729.0,0.00164]
[1726085184935,1.99640317,57730.0,57729.0,0.00164]
[1726085185408,2.03056724,57730.0,57729.0,0.00264]
[1726085186309,0.660841,57721.0,57720.0,0.00164]
[1726085186567,1.90291005,57721.0,57720.0,0.00164]
[1726085186792,2.00291005,57721.0,57720.0,0.00164]
[1726085187003,2.77189394,57721.0,57720.0,0.00164]
[1726085187228,2.42539994,57721.0,57720.0,0.00164]
[1726085187926,2.42739994,57721.0,57720.0,0.00164]
[1726085188348,2.42739994,57721.0,57720.0,0.00264]
[1726085188349,2.04191005,57721.0,57720.0,0.00264]
[1726085188566,2.05373777,57721.0,57720.0,0.00264]
[1726085188781,2.04673777,57721.0,57720.0,0.00164]
[1726085189257,2.05473777,57721.0,57720.0,0.00264]
[1726085189475,2.02273777,57721.0,57720.0,0.00264]
[1726085190546,2.05273777,57721.0,57720.0,0.00264]
[1726085190773,2.48840283,57721.0,57720.0,0.00264]
[1726085190977,2.48840283,57721.0,57699.0,0.0038257]
[1726085190978,1.379739,57711.0,57700.0,0.51989914]
[1726085191189,1.90582005,57711.0,57700.0,0.51989914]
[1726085191411,1.90582005,57711.0,57699.0,0.0038257]
[1726085191412,0.956415,57709.0,57699.0,0.0038257]
[1726085191663,1.85034046,57709.0,57699.0,0.0038257]
[1726085191928,2.64347246,57709.0,57699.0,0.0038257]
[1726085192167,3.02860006,57709.0,57699.0,0.0038257]
[1726085192408,2.64347246,57709.0,57699.0,0.0038257]
[1726085192828,2.65747246,57709.0,57699.0,0.0038257]
[1726085193103,2.64633041,57709.0,57699.0,0.0038257]
[1726085193326,2.67350874,57709.0,57699.0,0.0038257]
[1726085194215,2.65950874,57709.0,57699.0,0.0038257]
[1726085194440,0.51993,57700.0,57699.0,0.0038257]
[1726085194663,0.81176244,57700.0,57699.0,0.0038257]
[1726085194892,0.61993,57700.0,57699.0,0.0038257]
[1726085195100,0.12717799,57700.0,57699.0,0.1771387]
[1726085195324,0.12717799,57700.0,57699.0,0.0038257]
[1726085195576,0.108,57700.0,57699.0,0.01321292]
[1726085195822,0.008,57700.0,57699.0,0.18652592]
[1726085196035,0.108,57700.0,57699.0,0.01321292]
[1726085196240,0.1,57700.0,57699.0,0.01321292]
[1726085196455,0.61993,57700.0,57699.0,0.01321292]
[1726085196883,1.11345,57700.0,57699.0,0.0038257]
[1726085197508,1.11845,57700.0,57699.0,0.0038257]
[1726085198147,1.14063025,57700.0,57699.0,0.0038257]
[1726085198363,1.14063025,57700.0,57690.0,0.17334]
[1726085198364,0.173323,57696.0,57690.0,0.17334]
[1726085198568,0.173323,57696.0,57690.0,0.2322614]
[1726085198778,0.173325,57695.0,57690.0,0.2322614]
[1726085199423,0.02718043,57694.0,57690.0,0.2322614]
[1726085200520,0.20050843,57694.0,57690.0,0.17334]
[1726085202035,0.173331,57693.0,57690.0,0.17334]
[1726085202471,0.173334,57692.0,57689.0,0.174979]
[1726085202690,0.17334,57690.0,57689.0,0.001638]
[1726085203173,0.52002,57690.0,57689.0,0.001638]
[1726085205191,0.003,57690.0,57689.0,0.001638]
[1726085205421,0.03018137,57690.0,57689.0,0.07747812]
[1726085207461,0.20352137,57690.0,57689.0,0.07747812]
[1726085207679,0.03018137,57690.0,57689.0,0.07747812]
[1726085208133,0.03018137,57690.0,57689.0,0.25082112]
[1726085209064,0.03018137,57690.0,57689.0,0.59750712]
[1726085209614,0.02718137,57690.0,57689.0,0.59750712]
[1726085210308,0.02718137,57690.0,57689.0,0.25082112]
[1726085210540,0.20052137,57690.0,57689.0,0.01107812]
[1726085210759,0.20252137,57690.0,57689.0,0.01107812]
[1726085211041,1.44629527,57690.0,57689.0,0.01107812]
[1726085211261,0.86673,57688.0,57687.0,0.001638]
[1726085211472,1.447822,57688.0,57687.0,0.001638]
[1726085211683,1.514822,57688.0,57687.0,0.001638]
[1726085214098,1.526822,57688.0,57687.0,0.001638]
[1726085214321,1.524822,57688.0,57687.0,0.001638]
[1726085214549,1.482822,57688.0,57687.0,0.001638]
[1726085215004,1.496822,57688.0,57687.0,0.001638]
[1726085215486,1.51000716,57688.0,57687.0,0.001638]
[1726085215702,1.52300716,57688.0,57687.0,0.001638]
[1726085216950,1.51000716,57688.0,57687.0,0.001638]
[1726085217153,1.52300716,57688.0,57687.0,0.001638]
[1726085218228,1.51000716,57688.0,57687.0,0.001638]
[1726085218756,1.51500716,57688.0,57687.0,0.001638]
[1726085218951,1.56955353,57688.0,57687.0,0.001638]
[1726085219371,1.22286153,57688.0,57687.0,0.001638]
[1726085220229,1.19986153,57688.0,57687.0,0.001638]
[1726085220444,0.70676953,57688.0,57687.0,0.001638]
[1726085220666,0.03218516,57688.0,57687.0,0.001638]
[1726085220877,0.03218516,57688.0,57687.0,0.586685]
[1726085221102,0.03218516,57688.0,57687.0,0.59585057]
[1726085221550,0.02718516,57688.0,57687.0,0.59585057]
[1726085222007,0.03218516,57688.0,57687.0,0.59585057]
[1726085222224,0.005,57688.0,57687.0,0.59585057]
[1726085222444,0.005,57688.0,57687.0,0.24915257]
[1726085223100,0.1,57692.0,57688.0,0.173343]
[1726085223308,0.05455962,57691.0,57688.0,0.173343]
[1726085223519,0.05455962,57691.0,57689.0,0.173342]
[1726085223976,0.05455962,57691.0,57690.0,0.00916557]
[1726085225613,0.05455962,57691.0,57690.0,0.18250557]
[1726085225851,0.05455962,57691.0,57690.0,0.00916557]
[1726085226066,0.05455962,57692.0,57690.0,0.00916557]
[1726085226298,0.05455962,57691.0,57690.0,0.00916557]
[1726085226533,0.05455962,57692.0,57690.0,0.00916557]
[1726085227003,0.02718089,57691.0,57690.0,0.00916557]
[1726085227239,0.13334027,57691.0,57690.0,0.00916557]
[1726085227465,0.23334027,57691.0,57690.0,0.00916557]
[1726085228162,0.18174051,57691.0,57690.0,0.00916557]
[1726085228388,0.25914015,57691.0,57690.0,0.00916557]
[1726085229330,0.28494003,57691.0,57690.0,0.00916557]
[1726085229578,0.47395314,57691.0,57690.0,0.00916557]
[1726085229826,0.37075362,57691.0,57690.0,0.00916557]
[1726085230336,0.49975303,57691.0,57690.0,0.00916557]
[1726085230562,0.27075362,57691.0,57690.0,0.57923469]
[1726085230823,0.02718089,57691.0,57690.0,0.79542998]
[1726085231308,0.02818089,57691.0,57690.0,1.14210998]
[1726085232267,0.001,57691.0,57690.0,1.14210998]
[1726085232741,0.001,57691.0,57690.0,1.23402692]
[1726085233016,0.001,57691.0,57690.0,1.65570692]
[1726085233274,0.07772832,57694.0,57692.0,0.075]
[1726085233531,0.05189305,57693.0,57692.0,0.94167]
[1726085233769,0.05189305,57693.0,57692.0,1.14271441]
[1726085234016,0.05189305,57693.0,57692.0,1.55288241]
[1726085234752,0.07772832,57694.0,57692.0,1.55288241]
[1726085234753,0.10363776,57694.0,57692.0,0.0635]
[1726085235003,0.10381072,57694.0,57693.0,0.173331]
[1726085235238,0.10381072,57694.0,57692.0,0.0635]
[1726085235481,0.29427969,57693.0,57692.0,0.0635]
[1726085235730,0.10383731,57693.0,57692.0,0.236832]
[1726085235976,0.29427969,57693.0,57692.0,0.236832]
[1726085236212,0.02717789,57696.0,57692.0,0.0635]
[1726085236213,0.32023902,57694.0,57692.0,0.0635]
[1726085236449,0.29531028,57693.0,57692.0,0.236834]
[1726085236687,0.19144238,57693.0,57692.0,0.0635]
[1726085236944,0.32205902,57693.0,57692.0,0.236834]
[1726085237184,0.32205902,57693.0,57692.0,0.583502]
[1726085237185,0.32105902,57693.0,57692.0,0.583502]
[1726085237899,0.19126238,57693.0,57692.0,0.236834]
[1726085238156,0.32105902,57693.0,57692.0,0.236834]
[1726085238394,0.19226238,57693.0,57692.0,0.236834]
[1726085239076,0.19226238,57693.0,57692.0,0.0635]
[1726085239370,0.19226238,57693.0,57692.0,0.236834]
[1726085240346,0.19226238,57693.0,57692.0,0.583502]
[1726085242299,0.32205902,57693.0,57692.0,0.0635]
[1726085242517,0.32205902,57693.0,57692.0,0.583502]
[1726085243693,0.32205902,57693.0,57692.0,0.59260458]
[1726085244850,0.05375157,57693.0,57692.0,1.42653106]
[1726085245099,0.05375157,57693.0,57692.0,1.77319906]
[1726085245100,0.00182,57693.0,57692.0,1.77319906]
[1726085249711,0.00082,57693.0,57692.0,1.77319906]
[1726085250181,0.00182,57693.0,57692.0,1.77519906]
[1726085250633,0.00082,57693.0,57692.0,1.77319906]
[1726085251142,0.00182,57693.0,57692.0,1.77519906]
[1726085255049,0.00182,57693.0,57692.0,1.28794058]
[1726085255986,0.00182,57693.0,57692.0,0.01110258]
[1726085256223,0.521813,57693.0,57692.0,0.01110258]
[1726085256463,0.00182,57693.0,57692.0,0.002]
[1726085256699,0.175151,57693.0,57692.0,0.01058669]
[1726085256922,0.02799856,57693.0,57691.0,0.173336]
[1726085257134,0.02899856,57693.0,57692.0,0.53058869]
[1726085257650,0.02799856,57693.0,57692.0,0.52858869]
[1726085258325,0.07982476,57693.0,57692.0,0.52858869]
[1726085258574,0.07982476,57693.0,57692.0,0.18192069]
[1726085259047,0.08082476,57693.0,57692.0,0.18392069]
[1726085259498,0.07982476,57693.0,57692.0,0.18192069]
[1726085259630,0.08082476,57693.0,57692.0,0.18392069]